[Event "*** Titled Tuesday Blitz AM"]
[Site "Chess.com"]
[Date "2020.01.07"]
[Round "4"]
[White "alishersuleymenov"]
[Black "mishanick"]
[Result "0-1"]
[WhiteElo "2810"]
[BlackElo "2973"]
[TimeControl "180+2"]
[EndTime "9:55:34 PST"]
[Termination "mishanick won by resignation"]

1. d4 {[%clk 0:03:01.9]} 1... Nf6 {[%clk 0:02:52.9]} 2. Nf3 {[%clk 0:03:03.2]}
2... d5 {[%clk 0:02:53.8]} 3. c3 {[%clk 0:03:04.6]} 3... e6 {[%clk 0:02:52.8]}
4. Bf4 {[%clk 0:03:05.6]} 4... c5 {[%clk 0:02:51.4]} 5. e3 {[%clk 0:03:07]} 5...
Qb6 {[%clk 0:02:51.5]} 6. Qb3 {[%clk 0:03:04.1]} 6... c4 {[%clk 0:02:52]} 7. Qc2
{[%clk 0:03:05.1]} 7... Nh5 {[%clk 0:02:51.4]} 8. Be5 {[%clk 0:02:50.1]} 8...
Nc6 {[%clk 0:02:50.3]} 9. Nbd2 {[%clk 0:02:47.2]} 9... Nxe5 {[%clk 0:02:50.9]}
10. dxe5 {[%clk 0:02:48.3]} 10... f5 {[%clk 0:02:46.7]} 11. exf6 {[%clk
0:02:42.9]} 11... Nxf6 {[%clk 0:02:47.1]} 12. b3 {[%clk 0:02:31.4]} 12... cxb3
{[%clk 0:02:47.4]} 13. axb3 {[%clk 0:02:33.3]} 13... Bd6 {[%clk 0:02:47.9]} 14.
Bd3 {[%clk 0:02:33.4]} 14... O-O {[%clk 0:02:48.5]} 15. O-O {[%clk 0:02:16.9]}
15... Qc7 {[%clk 0:02:37.4]} 16. e4 {[%clk 0:02:13.9]} 16... Bd7 {[%clk
0:02:37.9]} 17. Rfe1 {[%clk 0:02:13.6]} 17... Bc5 {[%clk 0:02:10.9]} 18. h3
{[%clk 0:01:24.5]} 18... h6 {[%clk 0:02:06]} 19. exd5 {[%clk 0:00:40.9]} 19...
exd5 {[%clk 0:02:05.3]} 20. Re5 {[%clk 0:00:41.9]} 20... Rac8 {[%clk 0:01:51.9]}
21. c4 {[%clk 0:00:43]} 21... Bd4 {[%clk 0:01:48.6]} 22. Rae1 {[%clk 0:00:36.7]}
22... Bxe5 {[%clk 0:01:48.9]} 23. Nxe5 {[%clk 0:00:38.6]} 23... Rce8 {[%clk
0:01:46.3]} 24. f4 {[%clk 0:00:39.7]} 24... Qc5+ {[%clk 0:01:42.8]} 25. Kh1
{[%clk 0:00:37.8]} 25... Bc6 {[%clk 0:01:44.1]} 26. Re2 {[%clk 0:00:27.7]} 26...
Qd4 {[%clk 0:01:42.3]} 27. Ndf3 {[%clk 0:00:23.1]} 27... Qxf4 {[%clk 0:01:39.3]}
28. Ng6 {[%clk 0:00:24.3]} 28... Rxe2 {[%clk 0:01:39.2]} 29. Bxe2 {[%clk
0:00:25]} 29... Qe4 {[%clk 0:01:10.6]} 30. Bd3 {[%clk 0:00:26]} 30... Qe3 {[%clk
0:01:11.1]} 31. Nxf8 {[%clk 0:00:07.9]} 31... Kxf8 {[%clk 0:01:10.8]} 32. cxd5
{[%clk 0:00:09.3]} 32... Nxd5 {[%clk 0:01:12.1]} 33. Bc4 {[%clk 0:00:08.9]}
33... Nf6 {[%clk 0:01:04.3]} 34. Qg6 {[%clk 0:00:09.8]} 34... Qc1+ {[%clk
0:00:58]} 35. Kh2 {[%clk 0:00:10.2]} 35... Be8 {[%clk 0:00:46.2]} 36. Qf5 {[%clk
0:00:11.4]} 36... Qe3 {[%clk 0:00:45.9]} 37. Ne5 {[%clk 0:00:12.7]} 37... Qb6
{[%clk 0:00:43.7]} 38. Qf4 {[%clk 0:00:09.6]} 38... Qd8 {[%clk 0:00:39.3]} 39.
Kh1 {[%clk 0:00:08.8]} 39... b5 {[%clk 0:00:38]} 40. Bxb5 {[%clk 0:00:07.3]}
40... Bxb5 {[%clk 0:00:25.7]} 41. Qb4+ {[%clk 0:00:07.9]} 41... Kg8 {[%clk
0:00:24.3]} 42. Qxb5 {[%clk 0:00:09.2]} 42... Qd1+ {[%clk 0:00:25.6]} 43. Kh2
{[%clk 0:00:10.4]} 43... Qd6 {[%clk 0:00:27]} 44. Kh1 {[%clk 0:00:07.6]} 44...
Kh7 {[%clk 0:00:15.4]} 45. Qe2 {[%clk 0:00:08.6]} 45... Qd4 {[%clk 0:00:15.4]}
46. Nf3 {[%clk 0:00:08.2]} 46... Qd5 {[%clk 0:00:15.4]} 47. Qc2+ {[%clk
0:00:08.1]} 47... Kg8 {[%clk 0:00:16.5]} 48. Qc8+ {[%clk 0:00:08.5]} 48... Kh7
{[%clk 0:00:17.8]} 49. Qc2+ {[%clk 0:00:09.3]} 49... Qe4 {[%clk 0:00:18.8]} 50.
Qf2 {[%clk 0:00:05.7]} 50... a5 {[%clk 0:00:19]} 51. Qd2 {[%clk 0:00:05.6]}
51... Qf5 {[%clk 0:00:18.6]} 52. Kh2 {[%clk 0:00:04.5]} 52... Ne4 {[%clk
0:00:19.4]} 53. Qd4 {[%clk 0:00:05.5]} 53... Qf4+ {[%clk 0:00:20.1]} 54. Kg1
{[%clk 0:00:05.3]} 54... Qc1+ {[%clk 0:00:20.5]} 55. Kh2 {[%clk 0:00:06.7]}
55... Qc7+ {[%clk 0:00:22.1]} 56. Kg1 {[%clk 0:00:08.2]} 56... Nc5 {[%clk
0:00:22.5]} 57. Ne5 {[%clk 0:00:05.4]} 57... Ne6 {[%clk 0:00:19.1]} 58. Qe4+
{[%clk 0:00:05.1]} 58... Kg8 {[%clk 0:00:20.2]} 59. Nc4 {[%clk 0:00:03.2]} 59...
Qc5+ {[%clk 0:00:20.7]} 60. Kh1 {[%clk 0:00:04.6]} 60... Kf7 {[%clk 0:00:22.1]}
61. Qf3+ {[%clk 0:00:04.6]} 61... Ke7 {[%clk 0:00:22.6]} 62. Qb7+ {[%clk
0:00:05.7]} 62... Kf6 {[%clk 0:00:24]} 63. Qf3+ {[%clk 0:00:06.6]} 63... Ke7
{[%clk 0:00:21.4]} 64. Qc3 {[%clk 0:00:07.7]} 64... Qb4 {[%clk 0:00:20]} 65. Qe3
{[%clk 0:00:07.8]} 65... a4 {[%clk 0:00:20.7]} 66. Ne5 {[%clk 0:00:04.3]} 66...
Qxb3 {[%clk 0:00:20.5]} 67. Qa7+ {[%clk 0:00:04.7]} 67... Kd6 {[%clk 0:00:20.8]}
68. Nf7+ {[%clk 0:00:04.6]} 68... Kc6 {[%clk 0:00:22]} 69. Qa6+ {[%clk
0:00:04.2]} 69... Kd7 {[%clk 0:00:22.7]} 70. Ne5+ {[%clk 0:00:04.8]} 70... Ke7
{[%clk 0:00:24.1]} 71. Qa7+ {[%clk 0:00:03.8]} 71... Kd6 {[%clk 0:00:25.4]} 72.
Nf7+ {[%clk 0:00:04.1]} 72... Kd5 {[%clk 0:00:26.7]} 73. Qd7+ {[%clk 0:00:04.6]}
73... Ke4 {[%clk 0:00:27.9]} 74. Qd6 {[%clk 0:00:03.9]} 74... a3 {[%clk
0:00:28.1]} 75. Qe5+ {[%clk 0:00:02.8]} 75... Kd3 {[%clk 0:00:29.3]} 76. Nd6
{[%clk 0:00:04]} 76... a2 {[%clk 0:00:29.8]} 77. Kh2 {[%clk 0:00:04.2]} 77...
Kc2 {[%clk 0:00:26.5]} 78. Ne4 {[%clk 0:00:03.8]} 78... Qc4 {[%clk 0:00:26.1]}
79. Nf2 {[%clk 0:00:02.7]} 79... Qf4+ {[%clk 0:00:26.8]} 0-1

[Event "*** Titled Tuesday Blitz AM"]
[Site "Chess.com"]
[Date "2020.01.07"]
[Round "4"]
[White "RaunakSadhwani2005"]
[Black "Sanan_Sjugirov"]
[Result "0-1"]
[WhiteElo "2763"]
[BlackElo "2956"]
[TimeControl "180+2"]
[EndTime "9:56:14 PST"]
[Termination "Sanan_Sjugirov won by resignation"]

1. d4 {[%clk 0:03:00.7]} 1... Nf6 {[%clk 0:03:00.4]} 2. Nc3 {[%clk 0:03:01.8]}
2... d5 {[%clk 0:02:59.3]} 3. Bf4 {[%clk 0:03:03]} 3... e6 {[%clk 0:02:59.8]} 4.
Nb5 {[%clk 0:03:03.1]} 4... Na6 {[%clk 0:02:57.9]} 5. e3 {[%clk 0:03:02.9]} 5...
c6 {[%clk 0:02:57.2]} 6. Nc3 {[%clk 0:03:04.4]} 6... Bb4 {[%clk 0:02:53.6]} 7.
Bd3 {[%clk 0:03:02.6]} 7... c5 {[%clk 0:02:39.9]} 8. Bxa6 {[%clk 0:02:59]} 8...
bxa6 {[%clk 0:02:40.7]} 9. Ne2 {[%clk 0:03:00.9]} 9... cxd4 {[%clk 0:02:37.1]}
10. exd4 {[%clk 0:03:01.3]} 10... a5 {[%clk 0:02:35.1]} 11. O-O {[%clk
0:03:02.2]} 11... Ba6 {[%clk 0:02:35.4]} 12. Re1 {[%clk 0:03:03.6]} 12... O-O
{[%clk 0:02:34.3]} 13. a3 {[%clk 0:03:04]} 13... Be7 {[%clk 0:02:32.8]} 14. Nc1
{[%clk 0:03:05.5]} 14... Qb6 {[%clk 0:02:30.6]} 15. Nb3 {[%clk 0:03:02.6]} 15...
Rac8 {[%clk 0:02:25.2]} 16. Nc5 {[%clk 0:02:59.1]} 16... Qc6 {[%clk 0:02:08.9]}
17. Nxa6 {[%clk 0:02:51.5]} 17... Qxa6 {[%clk 0:02:10.8]} 18. Qe2 {[%clk
0:02:52.8]} 18... Qb6 {[%clk 0:02:05.7]} 19. Rab1 {[%clk 0:02:13.1]} 19... Qxd4
{[%clk 0:02:01.4]} 20. Be3 {[%clk 0:02:13.8]} 20... Qc4 {[%clk 0:01:49.7]} 21.
Bxa7 {[%clk 0:02:14.5]} 21... Bxa3 {[%clk 0:01:32.9]} 22. Nb5 {[%clk 0:01:52.4]}
22... Be7 {[%clk 0:01:24.4]} 23. c3 {[%clk 0:01:52.1]} 23... Qxe2 {[%clk
0:01:12.5]} 24. Rxe2 {[%clk 0:01:54]} 24... Bc5 {[%clk 0:01:11.5]} 25. Ra1
{[%clk 0:01:48.7]} 25... Bxa7 {[%clk 0:01:01.9]} 26. Nxa7 {[%clk 0:01:50.6]}
26... Rc5 {[%clk 0:01:02.3]} 27. b4 {[%clk 0:01:51.7]} 27... axb4 {[%clk
0:00:59.6]} 28. cxb4 {[%clk 0:01:53.6]} 28... Rc3 {[%clk 0:00:54.7]} 29. b5
{[%clk 0:01:53.1]} 29... Rb3 {[%clk 0:00:53.9]} 30. Rc2 {[%clk 0:01:33.1]} 30...
g5 {[%clk 0:00:51.4]} 31. Rcc1 {[%clk 0:01:14.1]} 31... Ra8 {[%clk 0:00:46.5]}
32. f3 {[%clk 0:01:05.2]} 32... Kg7 {[%clk 0:00:46.2]} 33. Kf2 {[%clk
0:01:05.7]} 33... g4 {[%clk 0:00:44.6]} 34. Rc2 {[%clk 0:01:00.9]} 34... h5
{[%clk 0:00:43.8]} 35. Rca2 {[%clk 0:00:59]} 35... Nd7 {[%clk 0:00:33.6]} 36.
Ke2 {[%clk 0:00:58.6]} 36... Nb6 {[%clk 0:00:26.5]} 37. fxg4 {[%clk 0:00:49.6]}
37... hxg4 {[%clk 0:00:27.2]} 38. Ra3 {[%clk 0:00:51.2]} 38... Rb2+ {[%clk
0:00:24.5]} 39. Kd3 {[%clk 0:00:52.6]} 39... Nc4 {[%clk 0:00:24.1]} 40. R3a2
{[%clk 0:00:52.3]} 40... Rb3+ {[%clk 0:00:14.7]} 41. Kd4 {[%clk 0:00:53.2]}
41... Nd6 {[%clk 0:00:07.6]} 42. Kc5 {[%clk 0:00:51.7]} 42... Nxb5 {[%clk
0:00:08.5]} 43. Nxb5 {[%clk 0:00:47.3]} 43... Rc8+ {[%clk 0:00:09.2]} 44. Kd6
{[%clk 0:00:46.6]} 44... Rxb5 {[%clk 0:00:09.7]} 45. Ra7 {[%clk 0:00:48.5]}
45... Rb6+ {[%clk 0:00:06.3]} 46. Ke5 {[%clk 0:00:49.1]} 46... Rc4 {[%clk
0:00:07]} 47. Re1 {[%clk 0:00:46.9]} 47... Rbb4 {[%clk 0:00:07.3]} 48. Kd6
{[%clk 0:00:46]} 48... Re4 {[%clk 0:00:07.9]} 49. Rf1 {[%clk 0:00:45.7]} 49...
Rf4 {[%clk 0:00:09.3]} 50. Re1 {[%clk 0:00:47.2]} 50... Rf2 {[%clk 0:00:09.9]}
51. g3 {[%clk 0:00:46]} 51... Rb6+ {[%clk 0:00:10.9]} 52. Kc5 {[%clk 0:00:46.7]}
52... Rbb2 {[%clk 0:00:12.8]} 53. Rxe6 {[%clk 0:00:47.6]} 53... Rbc2+ {[%clk
0:00:13.1]} 54. Kd6 {[%clk 0:00:46.4]} 54... d4 {[%clk 0:00:12.9]} 55. Re4
{[%clk 0:00:46.6]} 55... d3 {[%clk 0:00:14.3]} 56. Rxg4+ {[%clk 0:00:47.8]}
56... Kf6 {[%clk 0:00:14.3]} 57. Rd4 {[%clk 0:00:38.6]} 57... d2 {[%clk
0:00:15.1]} 58. Ra3 {[%clk 0:00:35.6]} 58... Rxh2 {[%clk 0:00:13.8]} 59. Rf3+
{[%clk 0:00:37]} 59... Kg5 {[%clk 0:00:13.6]} 60. Rfd3 {[%clk 0:00:37.2]} 60...
f5 {[%clk 0:00:13.8]} 61. Ke6 {[%clk 0:00:35]} 61... Re2+ {[%clk 0:00:14.5]} 62.
Kf7 {[%clk 0:00:31.3]} 62... Rc7+ {[%clk 0:00:15.1]} 63. Kf8 {[%clk 0:00:32.8]}
63... Rc2 {[%clk 0:00:14.8]} 64. Kf7 {[%clk 0:00:33.5]} 64... Rc7+ {[%clk
0:00:15.2]} 65. Kf8 {[%clk 0:00:33.2]} 65... Rh2 {[%clk 0:00:16.5]} 66. Kg8
{[%clk 0:00:31.2]} 66... Rc2 {[%clk 0:00:15.1]} 67. Kf7 {[%clk 0:00:25.1]} 67...
Ra2 {[%clk 0:00:15.7]} 68. Ke6 {[%clk 0:00:24.7]} 68... Re2+ {[%clk 0:00:16.4]}
69. Kd7 {[%clk 0:00:22.4]} 69... Re4 {[%clk 0:00:14.9]} 70. Rxd2 {[%clk
0:00:20.2]} 70... Rxd4+ {[%clk 0:00:16]} 71. Rxd4 {[%clk 0:00:20.7]} 71... Ra3
{[%clk 0:00:16.3]} 72. Ke6 {[%clk 0:00:21.3]} 72... Rxg3 {[%clk 0:00:17]} 73.
Rd8 {[%clk 0:00:22.6]} 73... Re3+ {[%clk 0:00:17.8]} 74. Kf7 {[%clk 0:00:23.2]}
74... f4 {[%clk 0:00:18.7]} 75. Rd5+ {[%clk 0:00:24]} 75... Kg4 {[%clk
0:00:19.9]} 76. Kg6 {[%clk 0:00:25.5]} 76... f3 {[%clk 0:00:21.1]} 77. Rg5+
{[%clk 0:00:26.7]} 77... Kf4 {[%clk 0:00:21.4]} 78. Rf5+ {[%clk 0:00:27.7]}
78... Kg3 {[%clk 0:00:22.6]} 79. Rg5+ {[%clk 0:00:28.5]} 79... Kf2 {[%clk
0:00:23.9]} 80. Kh5 {[%clk 0:00:29.8]} 80... Ke2 {[%clk 0:00:24.7]} 81. Ra5
{[%clk 0:00:30.6]} 81... f2 {[%clk 0:00:25.2]} 82. Ra2+ {[%clk 0:00:32.5]} 82...
Kf3 {[%clk 0:00:25.9]} 0-1

[Event "*** Titled Tuesday Blitz AM"]
[Site "Chess.com"]
[Date "2020.01.07"]
[Round "4"]
[White "Andrii_Prydun"]
[Black "MarcoRiehle"]
[Result "0-1"]
[WhiteElo "2367"]
[BlackElo "2630"]
[TimeControl "180+2"]
[EndTime "9:56:28 PST"]
[Termination "MarcoRiehle won by resignation"]

1. d4 {[%clk 0:03:01.9]} 1... d5 {[%clk 0:03:00.6]} 2. c4 {[%clk 0:03:01.2]}
2... e6 {[%clk 0:03:02]} 3. Nf3 {[%clk 0:03:00.8]} 3... Nf6 {[%clk 0:03:02.6]}
4. g3 {[%clk 0:03:01.9]} 4... dxc4 {[%clk 0:02:52]} 5. Bg2 {[%clk 0:02:54]} 5...
Bb4+ {[%clk 0:02:52]} 6. Bd2 {[%clk 0:02:51.3]} 6... a5 {[%clk 0:02:51.7]} 7.
O-O {[%clk 0:02:47.4]} 7... O-O {[%clk 0:02:52.7]} 8. Qc2 {[%clk 0:02:45.5]}
8... Bxd2 {[%clk 0:02:53.2]} 9. Nbxd2 {[%clk 0:02:43.9]} 9... b5 {[%clk
0:02:53.5]} 10. a4 {[%clk 0:02:19.8]} 10... c6 {[%clk 0:02:48.6]} 11. Ne5 {[%clk
0:02:06.3]} 11... Ra6 {[%clk 0:02:22]} 12. e3 {[%clk 0:01:39.5]} 12... Qc7
{[%clk 0:01:58.8]} 13. b3 {[%clk 0:01:19.9]} 13... cxb3 {[%clk 0:01:50.3]} 14.
Nxb3 {[%clk 0:01:20.5]} 14... b4 {[%clk 0:01:49.2]} 15. Rac1 {[%clk 0:01:20.6]}
15... Bb7 {[%clk 0:01:48]} 16. Nc5 {[%clk 0:01:20.8]} 16... Rb6 {[%clk
0:01:28.8]} 17. Nxb7 {[%clk 0:01:16.9]} 17... Qxb7 {[%clk 0:01:12.1]} 18. Nxc6
{[%clk 0:01:16]} 18... Nxc6 {[%clk 0:01:13.2]} 19. Bxc6 {[%clk 0:01:16.2]} 19...
Qb8 {[%clk 0:01:13.7]} 20. Bb5 {[%clk 0:01:11.4]} 20... Nd5 {[%clk 0:00:49.9]}
21. Bd3 {[%clk 0:00:42.7]} 21... h6 {[%clk 0:00:45.2]} 22. Qb3 {[%clk
0:00:39.5]} 22... Nc3 {[%clk 0:00:40.7]} 23. Rc2 {[%clk 0:00:37.6]} 23... Rc6
{[%clk 0:00:39.2]} 24. Rfc1 {[%clk 0:00:37.2]} 24... Rfc8 {[%clk 0:00:38.7]} 25.
Bb5 {[%clk 0:00:30.4]} 25... R6c7 {[%clk 0:00:38.4]} 26. Ba6 {[%clk 0:00:31.3]}
26... Rd8 {[%clk 0:00:36.5]} 27. Bc4 {[%clk 0:00:26.6]} 27... Qa7 {[%clk
0:00:34.4]} 28. Bf1 {[%clk 0:00:22.8]} 28... Rdc8 {[%clk 0:00:34.3]} 29. h4
{[%clk 0:00:18.8]} 29... Rc6 {[%clk 0:00:32.5]} 30. Bd3 {[%clk 0:00:17.9]} 30...
Qd7 {[%clk 0:00:29.7]} 31. Ra1 {[%clk 0:00:13.2]} 31... R6c7 {[%clk 0:00:29.2]}
32. Rb2 {[%clk 0:00:07.8]} 32... Nd5 {[%clk 0:00:26.5]} 33. Bb5 {[%clk
0:00:07.5]} 33... Qd6 {[%clk 0:00:27.7]} 34. Qd3 {[%clk 0:00:05.3]} 34... Rc3
{[%clk 0:00:28.4]} 35. Qe2 {[%clk 0:00:05.2]} 35... Rc1+ {[%clk 0:00:27.1]} 36.
Rxc1 {[%clk 0:00:05.9]} 36... Rxc1+ {[%clk 0:00:28.1]} 37. Kh2 {[%clk
0:00:06.4]} 37... Rc7 {[%clk 0:00:27.3]} 38. Qf3 {[%clk 0:00:06.1]} 38... Nc3
{[%clk 0:00:27.2]} 39. Qa8+ {[%clk 0:00:06.6]} 39... Kh7 {[%clk 0:00:28.7]} 40.
Bd3+ {[%clk 0:00:07.8]} 40... g6 {[%clk 0:00:29.6]} 41. Rc2 {[%clk 0:00:04.6]}
41... Nxa4 {[%clk 0:00:28.4]} 42. Ra2 {[%clk 0:00:05.7]} 42... Nc3 {[%clk
0:00:27.2]} 43. Rxa5 {[%clk 0:00:05.8]} 43... Qc6 {[%clk 0:00:21.3]} 44. h5
{[%clk 0:00:04.9]} 44... Qxa8 {[%clk 0:00:22.6]} 45. Rxa8 {[%clk 0:00:06.1]}
45... Nd1 {[%clk 0:00:23.6]} 46. hxg6+ {[%clk 0:00:07]} 46... fxg6 {[%clk
0:00:24.7]} 47. Kg2 {[%clk 0:00:06.2]} 47... Rf7 {[%clk 0:00:25.9]} 48. Ra6
{[%clk 0:00:03.6]} 48... Nxf2 {[%clk 0:00:25.8]} 49. Bc4 {[%clk 0:00:03.8]}
49... Ng4 {[%clk 0:00:26.8]} 50. Bxe6 {[%clk 0:00:04.9]} 50... Nxe3+ {[%clk
0:00:27.9]} 51. Kh3 {[%clk 0:00:05.5]} 51... Re7 {[%clk 0:00:27.7]} 52. d5
{[%clk 0:00:06.3]} 52... Nc4 {[%clk 0:00:21]} 53. Rc6 {[%clk 0:00:06.8]} 53...
Ne5 {[%clk 0:00:21.2]} 54. Rb6 {[%clk 0:00:08]} 54... Nf3 {[%clk 0:00:21.3]} 55.
Rxb4 {[%clk 0:00:08.3]} 55... Ng5+ {[%clk 0:00:22.7]} 56. Kg4 {[%clk 0:00:09.4]}
56... Nxe6 {[%clk 0:00:24.6]} 57. dxe6 {[%clk 0:00:11.3]} 57... Rxe6 {[%clk
0:00:26.5]} 58. Rb7+ {[%clk 0:00:13]} 58... Kg8 {[%clk 0:00:27.9]} 59. Rb8+
{[%clk 0:00:14.1]} 59... Kg7 {[%clk 0:00:28.8]} 60. Rb7+ {[%clk 0:00:14.9]}
60... Kf6 {[%clk 0:00:30.6]} 61. Rb8 {[%clk 0:00:16.2]} 61... Re1 {[%clk
0:00:31.1]} 62. Rb6+ {[%clk 0:00:16.4]} 62... Re6 {[%clk 0:00:32.4]} 63. Rb5
{[%clk 0:00:17]} 63... h5+ {[%clk 0:00:33.7]} 64. Kh3 {[%clk 0:00:16.8]} 64...
Re3 {[%clk 0:00:34.9]} 65. Kh4 {[%clk 0:00:16.6]} 65... Re4+ {[%clk 0:00:35.2]}
66. Kh3 {[%clk 0:00:18]} 66... Kg7 {[%clk 0:00:37]} 67. Rb6 {[%clk 0:00:18.8]}
67... Re3 {[%clk 0:00:36.7]} 68. Kh4 {[%clk 0:00:18.1]} 68... Kh6 {[%clk
0:00:38.3]} 69. Rc6 {[%clk 0:00:17.7]} 69... Re1 {[%clk 0:00:39.3]} 70. Kh3
{[%clk 0:00:18]} 70... Rf1 {[%clk 0:00:40.6]} 71. Kg2 {[%clk 0:00:18.7]} 71...
Rf5 {[%clk 0:00:41.4]} 72. Rc4 {[%clk 0:00:16.7]} 72... Kg5 {[%clk 0:00:42.8]}
73. Rb4 {[%clk 0:00:17]} 73... Rc5 {[%clk 0:00:44.1]} 74. Kf3 {[%clk 0:00:18]}
74... Rc2 {[%clk 0:00:44.1]} 75. Rb5+ {[%clk 0:00:17.6]} 75... Kh6 {[%clk
0:00:45.8]} 76. Rb6 {[%clk 0:00:18.5]} 76... Ra2 {[%clk 0:00:46.3]} 77. Rb5
{[%clk 0:00:19.6]} 77... Ra6 {[%clk 0:00:45.9]} 78. Rc5 {[%clk 0:00:17.1]} 78...
g5 {[%clk 0:00:47.4]} 79. Rb5 {[%clk 0:00:17.3]} 79... Kg6 {[%clk 0:00:48.3]}
80. Rc5 {[%clk 0:00:17.9]} 80... Ra3+ {[%clk 0:00:42.1]} 81. Kf2 {[%clk
0:00:18.4]} 81... Ra2+ {[%clk 0:00:42.8]} 82. Ke3 {[%clk 0:00:13.1]} 82... Rb2
{[%clk 0:00:36.7]} 83. Kf3 {[%clk 0:00:10.5]} 83... g4+ {[%clk 0:00:37.9]} 84.
Ke3 {[%clk 0:00:10.6]} 84... Rg2 {[%clk 0:00:39.2]} 85. Rc6+ {[%clk 0:00:08.3]}
85... Kf7 {[%clk 0:00:40.5]} 86. Rc7+ {[%clk 0:00:08.6]} 86... Ke6 {[%clk
0:00:40.8]} 87. Rc6+ {[%clk 0:00:09.5]} 87... Kd5 {[%clk 0:00:40.7]} 88. Rh6
{[%clk 0:00:06.3]} 88... Rxg3+ {[%clk 0:00:42.1]} 89. Kf4 {[%clk 0:00:07.4]}
89... Rf3+ {[%clk 0:00:40.5]} 90. Kg5 {[%clk 0:00:06]} 90... g3 {[%clk
0:00:33.5]} 91. Kxh5 {[%clk 0:00:05.9]} 91... g2 {[%clk 0:00:34.2]} 0-1